bitfinex-derivatives/quotes_BNBF0:USTF0_20250220
["timestamp","ask_amount","ask_price","bid_price","bid_amount"]
[1740076750816,3.09948376,653.26,652.47,1.13018886]
[1740076751011,3.09948376,653.25,652.47,1.13018886]
[1740076751211,3.09948376,653.24,652.47,1.13018886]
[1740076751410,2.20868679,653.25,652.43,1.13018886]
[1740076751411,3.09948376,653.23,652.43,1.13018886]
[1740076751608,3.09948376,653.22,652.43,1.13018886]
[1740076751811,3.09948376,653.21,652.43,1.13018886]
[1740076752014,3.09948376,653.2,652.43,1.13018886]
[1740076752213,3.09948376,653.19,652.43,1.13018886]
[1740076752410,3.09948376,653.18,652.43,1.13018886]
[1740076752614,3.09948376,653.17,652.43,1.13018886]
[1740076752816,3.09948376,653.16,652.43,1.13018886]
[1740076753013,3.09948376,653.15,652.43,1.13018886]
[1740076753214,3.09948376,653.14,652.43,1.13018886]
[1740076753410,3.09948376,653.13,652.43,1.13018886]
[1740076753616,2.20868679,653.15,652.54,1.13018886]
[1740076753617,3.09948376,653.12,652.54,1.13018886]
[1740076753813,2.20868679,653.15,652.54,1.13018886]
[1740076754013,3.1051296,653.14,652.54,1.13018886]
[1740076754217,3.1051296,653.13,652.54,1.13018886]
[1740076754421,3.1051296,653.12,652.54,1.13018886]
[1740076754616,2.20868679,653.15,652.54,1.13018886]
[1740076754817,3.10500342,653.14,652.54,1.13018886]
[1740076755015,3.10500342,653.13,652.54,1.13018886]
[1740076755218,3.10500342,653.12,652.54,1.13018886]
[1740076755416,3.10500342,653.11,652.54,1.13018886]
[1740076755719,2.20868679,653.15,652.54,1.13018886]
[1740076756023,3.10476241,653.14,652.54,1.13018886]
[1740076756221,3.10476241,653.13,652.54,1.13018886]
[1740076756421,2.20868679,653.14,652.54,1.13018886]
[1740076756422,3.10476241,653.12,652.54,1.13018886]
[1740076756621,3.10476241,653.11,652.54,1.13018886]
[1740076756822,3.10476241,653.1,652.54,1.13018886]
[1740076757016,3.10476241,653.09,652.54,1.13018886]
[1740076757321,3.10476241,653.08,652.54,1.13018886]
[1740076757521,3.10476241,653.07,652.54,1.13018886]
[1740076757717,2.20868679,653.06,652.54,1.13018886]
[1740076758825,2.20868679,653.06,652.32,1.13018886]
[1740076759624,1.888,653.38,652.32,1.13018886]
[1740076760124,2.21585175,653.37,652.32,1.13018886]
[1740076760926,2.21585175,653.37,652.55,1.13018886]
[1740076762018,2.21585175,653.36,652.55,1.13018886]
[1740076764126,2.21585175,653.35,652.55,1.13018886]
[1740076765729,3.10137356,653.34,652.55,1.13018886]
[1740076765927,3.10137356,653.33,652.55,1.13018886]
[1740076766122,3.10137356,653.32,652.55,1.13018886]
[1740076766325,2.21585175,653.34,652.55,1.13018886]
[1740076766326,3.10137356,653.31,652.55,1.13018886]
[1740076766521,3.10137356,653.3,652.55,1.13018886]
[1740076766728,3.10137356,653.29,652.55,1.13018886]
[1740076767030,3.10137356,653.28,652.55,1.13018886]
[1740076767329,3.10137356,653.27,652.55,1.13018886]
[1740076767529,3.10137356,653.26,652.55,1.13018886]
[1740076767729,3.10137356,653.25,652.55,1.13018886]
[1740076767932,3.10137356,653.24,652.55,1.13018886]
[1740076768130,3.10137356,653.23,652.55,1.13018886]
[1740076768331,3.10137356,653.22,652.55,1.13018886]
[1740076768631,3.10137356,653.21,652.55,1.13018886]
[1740076768931,3.10137356,653.2,652.55,1.13018886]
[1740076769129,3.10137356,653.19,652.55,1.13018886]
[1740076769330,3.10137356,653.18,652.55,1.13018886]
[1740076769528,3.10137356,653.17,652.55,1.13018886]
[1740076769727,3.10137356,653.16,652.55,1.13018886]
[1740076769928,3.10137356,653.15,652.55,1.13018886]
[1740076770129,3.10137356,653.14,652.55,1.13018886]
[1740076770331,3.10137356,653.13,652.55,1.13018886]
[1740076770533,3.10137356,653.12,652.55,1.13018886]
[1740076770732,3.10137356,653.11,652.38,1.13018886]
[1740076770931,3.10137356,653.1,652.38,1.13018886]
[1740076771231,2.21585175,653.11,652.38,1.13018886]
[1740076771232,3.10137356,653.09,652.38,1.13018886]
[1740076771431,3.10137356,653.08,652.38,1.13018886]
[1740076771732,3.10137356,653.07,652.38,1.13018886]
[1740076771932,3.10137356,653.06,652.38,1.13018886]
[1740076772125,3.10137356,653.05,652.38,1.13018886]
[1740076772325,3.10137356,653.04,652.38,1.13018886]
[1740076772530,2.21585175,653.04,652.38,1.13018886]
[1740076773231,3.09981764,653.03,652.38,1.13018886]
[1740076773431,2.21585175,653.04,652.39,1.13018886]
[1740076774329,1.203,653.31,652.39,1.13018886]
[1740076774531,3.09947532,653.3,652.39,1.13018886]
[1740076774728,3.09947532,653.29,652.39,1.13018886]
[1740076774931,3.09947532,653.28,652.39,1.13018886]
[1740076775133,3.09947532,653.27,652.39,1.13018886]
[1740076775335,3.09947532,653.26,652.39,1.13018886]
[1740076775538,3.09947532,653.25,652.39,1.13018886]
[1740076775734,3.09947532,653.24,652.39,1.13018886]
[1740076776029,3.09947532,653.23,652.39,1.13018886]
[1740076776234,3.09947532,653.22,652.39,1.13018886]
[1740076776431,3.09947532,653.21,652.46,1.13018886]
[1740076776635,5.31284002,653.2,652.46,1.13018886]
[1740076776934,3.09947532,653.19,652.46,1.13018886]
[1740076777135,3.09947532,653.18,652.46,1.13018886]
[1740076777334,3.09947532,653.17,652.46,1.13018886]
[1740076777533,3.09947532,653.16,652.46,1.13018886]
[1740076777735,3.09947532,653.15,652.46,1.13018886]
[1740076777935,3.09947532,653.14,652.46,1.13018886]
[1740076778136,3.09947532,653.13,652.89,1.13018886]
[1740076778433,3.09947532,653.12,652.89,1.13018886]
[1740076778737,2.2133647,653.13,652.89,1.13018886]
[1740076779630,2.2133647,653.12,652.89,1.13018886]
[1740076780537,2.2133647,653.12,652.94,1.13018886]
[1740076781236,1.75,653.39,652.94,1.13018886]
[1740076781438,3.1014866,653.38,652.94,1.13018886]
[1740076781639,5.3163115,653.37,652.94,1.13018886]
[1740076781839,3.1014866,653.36,652.94,1.13018886]
[1740076782034,3.1014866,653.35,652.94,1.13018886]
[1740076782238,3.1014866,653.34,652.94,1.13018886]
[1740076782437,3.1014866,653.33,652.94,1.13018886]
[1740076782641,3.1014866,653.32,652.94,1.13018886]
[1740076782941,3.1014866,653.31,652.94,1.13018886]
[1740076783141,3.1014866,653.3,652.94,1.13018886]
[1740076783339,3.1014866,653.29,652.94,1.13018886]
[1740076783542,3.1014866,653.28,652.59,1.13018886]
[1740076783733,3.1014866,653.27,652.59,1.13018886]
[1740076783938,3.1014866,653.26,652.59,1.13018886]
[1740076784139,2.2148249,653.3,652.59,1.13018886]
[1740076784140,3.1014866,653.25,652.59,1.13018886]
[1740076784439,3.1014866,653.24,652.59,1.13018886]
[1740076784638,3.1014866,653.23,652.59,1.13018886]
[1740076784838,3.1014866,653.22,652.59,1.13018886]
[1740076785041,3.1014866,653.21,652.59,1.13018886]
[1740076785237,3.1014866,653.2,652.59,1.13018886]
[1740076785441,3.1014866,653.19,652.59,1.13018886]
[1740076785635,3.1014866,653.18,652.59,1.13018886]
[1740076785837,3.1014866,653.17,652.59,1.13018886]
[1740076786043,3.1014866,653.16,652.59,1.13018886]
[1740076786235,2.2148249,653.21,652.59,1.13018886]
[1740076786236,3.1014866,653.15,652.59,1.13018886]
[1740076786439,3.1014866,653.14,652.62,1.13018886]
[1740076786638,3.1014866,653.13,652.62,1.13018886]
[1740076786843,3.1014866,653.12,652.62,1.13018886]
[1740076787140,3.1014866,653.11,652.62,1.13018886]
[1740076787340,3.1014866,653.1,652.62,1.13018886]
[1740076787541,3.10407044,653.09,652.62,1.13018886]
[1740076787742,2.2148249,653.12,652.62,1.13018886]
[1740076787942,3.10406023,653.11,652.62,1.13018886]
[1740076788243,2.2148249,653.12,652.62,1.13018886]
[1740076788443,3.10429605,653.11,652.62,1.13018886]
[1740076788643,3.10429605,653.1,652.62,1.13018886]
[1740076788943,1.75,653.39,652.62,1.13018886]
[1740076789143,3.10443826,653.38,652.62,1.13018886]
[1740076789444,3.10443826,653.37,652.61,1.13018886]
[1740076789636,3.10443826,653.36,652.61,1.13018886]
[1740076789836,3.10443826,653.35,652.61,1.13018886]
[1740076790040,3.10443826,653.34,652.61,1.13018886]
[1740076790242,3.10443826,653.33,652.61,1.13018886]
[1740076790438,3.10443826,653.32,652.61,1.13018886]
[1740076790637,3.10443826,653.31,652.61,1.13018886]
[1740076790842,3.10443826,653.3,652.61,1.13018886]
[1740076791143,3.10443826,653.29,652.61,1.13018886]
[1740076791344,3.10443826,653.28,652.61,1.13018886]
[1740076791546,3.10443826,653.27,652.61,1.13018886]
[1740076791745,3.10443826,653.26,652.61,1.13018886]
[1740076791945,3.10443826,653.25,652.76,1.13018886]
[1740076792244,3.10443826,653.24,652.76,1.13018886]
[1740076792445,3.10443826,653.23,652.76,1.13018886]
[1740076792644,3.10443826,653.22,652.76,1.13018886]
[1740076792845,3.10443826,653.21,652.76,1.13018886]
[1740076793141,3.10443826,653.2,652.76,1.13018886]
[1740076793444,3.10443826,653.19,652.76,1.13018886]
[1740076793640,3.10443826,653.18,652.76,1.13018886]
[1740076793844,3.10443826,653.17,652.76,1.13018886]
[1740076794046,3.10443826,653.16,652.8,1.13018886]
[1740076794246,3.10443826,653.15,652.8,1.13018886]
[1740076794541,3.10443826,653.14,652.8,1.13018886]
[1740076794747,3.10443826,653.13,652.8,1.13018886]
[1740076794945,3.10443826,653.12,652.8,1.13018886]
[1740076795146,3.10443826,653.11,652.8,1.13018886]
[1740076795347,3.10443826,653.1,652.8,1.13018886]
[1740076795548,3.10443826,653.09,652.8,1.13018886]
[1740076795750,2.21704312,653.13,652.8,1.13018886]
[1740076795751,3.10443826,653.08,652.8,1.13018886]
[1740076796048,3.10443826,653.07,652.8,1.13018886]
[1740076796348,3.10443826,653.06,652.8,1.13018886]
[1740076796647,3.10443826,653.05,652.8,1.13018886]
[1740076796847,3.10443826,653.04,652.8,1.13018886]
[1740076797046,3.1080052,653.03,652.8,1.13018886]
[1740076797246,2.21704312,653.07,652.8,1.13018886]
[1740076797548,3.10868859,653.06,652.73,1.13018886]
[1740076797741,3.10868859,653.05,652.73,1.13018886]
[1740076797942,3.10868859,653.04,652.73,1.13018886]
[1740076798146,3.10868859,653.03,652.73,1.13018886]
[1740076798343,2.21704312,653.05,652.73,1.13018886]
[1740076798543,3.10901117,653.04,652.73,1.13018886]
[1740076798749,2.21704312,653.05,652.73,1.13018886]
[1740076798945,3.10862759,653.04,652.73,1.13018886]
[1740076799144,2.21704312,653.05,652.73,1.13018886]
[1740076799347,3.10893961,653.04,652.73,1.13018886]
[1740076799546,1.75,653.39,652.73,1.13018886]
[1740076799749,5.32931834,653.38,652.73,1.13018886]
[1740076799944,3.10907512,653.37,652.73,1.13018886]
[1740076800150,3.10907512,653.36,652.73,1.13018886]
[1740076800351,3.10907512,653.35,652.73,1.13018886]
[1740076800650,3.10907512,653.34,652.73,1.13018886]
[1740076800852,3.10907512,653.33,652.57,1.13018886]
[1740076801050,3.10907512,653.32,652.57,1.13018886]
[1740076801247,3.10907512,653.31,652.57,1.13018886]
[1740076801452,3.10907512,653.3,652.57,1.13018886]
[1740076801652,3.10907512,653.29,652.57,1.13018886]
[1740076801851,3.10907512,653.28,652.57,1.13018886]
[1740076802051,3.10907512,653.27,652.57,1.13018886]
[1740076802246,3.10907512,653.26,652.57,1.13018886]
[1740076802451,3.10907512,653.25,652.57,1.13018886]
[1740076802752,3.10907512,653.24,652.57,1.13018886]
[1740076802952,3.10907512,653.23,652.57,1.13018886]
[1740076803152,3.10907512,653.22,652.57,1.13018886]
[1740076803452,3.10907512,653.21,652.57,1.13018886]
[1740076803654,3.10907512,653.2,652.61,1.13018886]
[1740076803847,3.10907512,653.19,652.61,1.13018886]
[1740076804047,3.10907512,653.18,652.61,1.13018886]
[1740076804250,3.10907512,653.17,652.61,1.13018886]
[1740076804449,3.10907512,653.16,652.61,1.13018886]
[1740076804655,2.22024322,653.2,652.61,1.13018886]
[1740076804855,3.11220257,653.19,652.61,1.13018886]
[1740076805154,3.11220257,653.18,652.61,1.13018886]
[1740076805356,3.11220257,653.17,652.61,1.13018886]
[1740076805654,3.11220257,653.16,652.61,1.13018886]
[1740076805854,3.11220257,653.15,652.61,1.13018886]
[1740076806149,2.22024322,653.19,652.66,1.13018886]
[1740076806553,3.11186743,653.18,652.66,1.13018886]
[1740076806754,2.22024322,653.19,652.66,1.13018886]
[1740076806954,3.11188249,653.18,652.66,1.13018886]
[1740076807155,2.22024322,653.18,652.66,1.13018886]
[1740076808252,3.11164366,653.17,652.66,1.13018886]
[1740076808556,2.22024322,653.18,652.66,1.13018886]
[1740076808756,3.11147396,653.17,652.66,1.13018886]
[1740076808958,3.11152467,653.16,652.68,1.13018886]
[1740076809157,3.11152467,653.15,652.68,1.13018886]
[1740076809353,0.64,653.45,652.68,1.13018886]
[1740076809652,3.11148658,653.44,652.68,1.13018886]
[1740076809854,3.11148658,653.43,652.68,1.13018886]
[1740076810061,3.11148658,653.42,652.68,1.13018886]
[1740076810255,3.11148658,653.41,652.68,1.13018886]
[1740076810456,3.11148658,653.4,652.68,1.13018886]
[1740076810657,3.11148658,653.39,652.68,1.13018886]
[1740076810856,3.11148658,653.38,652.68,1.13018886]
[1740076811054,3.11148658,653.37,652.68,1.13018886]
[1740076811259,3.11148658,653.36,652.68,1.13018886]
[1740076811561,3.11148658,653.35,652.68,1.13018886]
[1740076811761,3.11148658,653.34,652.68,1.13018886]
[1740076811962,3.11148658,653.33,652.67,1.13018886]
[1740076812262,3.11148658,653.32,652.67,1.13018886]
[1740076812461,3.11148658,653.31,652.67,1.13018886]
[1740076812662,3.11148658,653.3,652.67,1.13018886]
[1740076812862,3.11148658,653.29,652.67,1.13018886]
[1740076813064,3.11148658,653.28,652.67,1.13018886]
[1740076813358,3.11148658,653.27,652.67,1.13018886]
[1740076813560,2.22173976,653.34,652.67,1.13018886]
[1740076813561,3.11148658,653.26,652.67,1.13018886]
[1740076813761,3.11148658,653.25,652.67,1.13018886]
[1740076813964,3.11148658,653.24,652.67,1.13018886]
[1740076814160,3.11148658,653.23,652.67,1.13018886]
[1740076814356,3.11148658,653.22,652.67,1.13018886]
[1740076814559,3.11148658,653.21,652.67,1.13018886]
[1740076814760,3.11148658,653.2,652.67,1.13018886]
[1740076814962,3.11148658,653.19,652.94,1.13018886]
[1740076815162,2.22173976,653.26,652.94,1.13018886]
[1740076815355,3.11019458,653.25,652.94,1.13018886]
[1740076815556,3.11019458,653.24,652.94,1.13018886]
[1740076815760,3.11019458,653.23,652.94,1.13018886]
[1740076816061,2.22173976,653.23,652.94,1.13018886]
[1740076817261,3.1096169,653.22,652.94,1.13018886]
[1740076817463,3.1096169,653.21,652.94,1.13018886]
[1740076817764,3.10948718,653.2,652.94,1.13018886]
[1740076817957,2.22173976,653.23,652.94,1.13018886]
[1740076818264,2.22173976,653.23,652.91,1.13018886]
[1740076818561,2.22173976,653.22,652.91,1.13018886]
[1740076819160,3.10916976,653.21,652.91,1.13018886]
[1740076819361,2.22173976,653.22,652.91,1.13018886]
[1740076820162,2.22173976,653.22,652.85,1.13018886]
[1740076820959,1.717,653.5,652.85,1.13018886]
[1740076821159,3.10853887,653.49,652.85,1.13018886]
[1740076821460,3.10853887,653.48,652.85,1.13018886]
[1740076821762,3.10853887,653.47,652.85,1.13018886]
[1740076821959,3.10853887,653.46,652.85,1.13018886]
[1740076822160,3.10853887,653.45,652.85,1.13018886]
[1740076822360,3.10853887,653.44,652.85,1.13018886]
[1740076822560,3.10853887,653.43,652.85,1.13018886]
[1740076822759,3.10853887,653.42,652.85,1.13018886]
[1740076822959,3.10853887,653.41,652.85,1.13018886]
[1740076823163,3.10853887,653.4,652.85,1.13018886]
[1740076823363,2.2194355,653.46,652.85,1.13018886]
[1740076823565,2.2194355,653.46,652.68,1.13018886]
[1740076824058,2.2194355,653.45,652.68,1.13018886]
[1740076826063,1.717,653.5,652.68,1.13018886]
[1740076826664,2.21788792,653.49,652.68,1.13018886]
[1740076827358,2.21788792,653.49,652.22,1.59709952]
[1740076827359,2.21788792,653.49,652.48,1.13018886]
[1740076827569,2.21788792,653.49,652.48,1.43671166]
[1740076828465,1.717,653.5,652.48,1.43671166]
[1740076830665,1.717,653.5,652.54,1.13018886]
[1740076831764,2.21808853,653.49,652.54,1.13018886]
[1740076832265,3.10645784,653.48,652.54,1.13018886]
[1740076832461,3.10661073,653.47,652.69,1.13018886]
[1740076832662,3.10658537,653.46,652.69,1.13018886]
[1740076832862,2.21808853,653.49,652.69,1.13018886]
[1740076833068,3.10670424,653.48,652.69,1.13018886]
[1740076833270,3.10670424,653.47,652.69,1.13018886]
[1740076833464,3.10670424,653.46,652.69,1.13018886]
[1740076833668,3.10670424,653.45,652.69,1.13018886]
[1740076833968,3.10670424,653.44,652.69,1.13018886]
[1740076834167,3.10670424,653.43,652.69,1.13018886]
[1740076834364,3.10670424,653.42,652.69,1.13018886]
[1740076834668,2.21808853,653.47,652.69,1.13018886]
[1740076834669,3.10670424,653.41,652.69,1.13018886]
[1740076834870,3.10670424,653.4,652.69,1.13018886]
[1740076835062,3.10670424,653.4,652.48,0.3065228]
[1740076835063,3.10670424,653.39,652.82,1.13018886]
[1740076835262,3.10670424,653.38,652.82,1.13018886]
[1740076835462,3.10670424,653.37,652.82,1.13018886]
[1740076835669,3.10670424,653.36,652.82,1.13018886]
[1740076835865,3.10670424,653.35,652.82,1.13018886]
[1740076836069,3.10670424,653.34,652.82,1.13018886]
[1740076836269,3.10670424,653.33,652.82,1.13018886]
[1740076836469,3.10670424,653.32,652.82,1.13018886]
[1740076836769,3.10670424,653.31,652.82,1.13018886]
[1740076836970,3.10670424,653.3,652.82,1.13018886]
[1740076837164,3.10670424,653.29,652.82,1.13018886]
[1740076837369,3.10670424,653.28,652.7,1.13018886]
[1740076837569,3.10670424,653.27,652.7,1.13018886]
[1740076837772,3.10670424,653.26,652.7,1.13018886]
[1740076838067,3.10670424,653.25,652.7,1.13018886]
[1740076838265,3.10670424,653.24,652.7,1.13018886]
[1740076838466,3.10670424,653.23,652.7,1.13018886]
[1740076838670,3.10670424,653.22,652.7,1.13018886]
[1740076838966,3.10670424,653.21,652.7,1.13018886]
[1740076839171,3.10670424,653.2,652.7,1.13018886]
[1740076839372,3.10670424,653.19,652.7,1.13018886]
[1740076839672,3.10670424,653.18,652.7,1.13018886]
[1740076839874,3.10670424,653.17,652.63,1.13018886]
[1740076840172,3.10670424,653.16,652.63,1.13018886]
[1740076840371,3.10670424,653.15,652.63,1.13018886]
[1740076840572,3.10670424,653.14,652.63,1.13018886]
[1740076840775,3.10670424,653.13,652.63,1.13018886]
[1740076841071,3.10670424,653.12,652.63,1.13018886]
[1740076841276,3.10670424,653.11,652.63,1.13018886]
[1740076841474,3.10670424,653.1,652.63,1.13018886]
[1740076841775,3.10670424,653.09,652.63,1.13018886]
[1740076841975,3.10670424,653.08,652.63,1.13018886]
[1740076842170,3.10670424,653.07,652.63,1.13018886]
[1740076842375,2.21808853,653.09,652.63,1.13018886]
[1740076842573,3.10771584,653.08,652.63,1.13018886]
[1740076842777,3.10771584,653.07,652.63,1.13018886]
[1740076842977,2.21808853,653.09,652.63,1.13018886]
[1740076843175,3.10770516,653.08,652.61,1.13018886]
[1740076843476,3.10770516,653.07,652.61,1.13018886]
[1740076843673,3.10770516,653.06,652.61,1.13018886]
[1740076843870,2.21808853,653.09,652.61,1.13018886]
[1740076844078,3.10767733,653.08,652.61,1.13018886]
[1740076844272,3.10767733,653.07,652.61,1.13018886]
[1740076844475,3.10767733,653.06,652.61,1.13018886]
[1740076844673,2.21913887,653.06,652.61,1.13018886]
[1740076846181,2.363,653.47,652.53,1.13018886]
[1740076846380,3.10746245,653.46,652.53,1.13018886]
[1740076846677,3.10746245,653.45,652.53,1.13018886]
[1740076846881,3.10746245,653.44,652.53,1.13018886]
[1740076847082,3.10746245,653.43,652.53,1.13018886]
[1740076847282,3.10746245,653.42,652.53,1.13018886]
[1740076847476,3.10746245,653.41,652.53,1.13018886]
[1740076847679,3.10746245,653.4,652.53,1.13018886]
[1740076847881,3.10746245,653.39,652.53,1.13018886]
[1740076848078,3.10746245,653.38,652.53,1.13018886]
[1740076848283,2.21903491,653.45,652.53,1.13018886]
[1740076848284,3.10746245,653.37,652.53,1.13018886]
[1740076848486,3.10746245,653.36,652.53,1.13018886]
[1740076848685,3.10746245,653.35,652.53,1.13018886]
[1740076848980,3.10746245,653.34,652.53,1.13018886]
[1740076849181,3.10746245,653.33,652.53,1.13018886]
[1740076849383,3.10746245,653.32,652.53,1.13018886]
[1740076849685,3.10746245,653.31,652.5,1.13018886]
[1740076849879,3.10746245,653.3,652.5,1.13018886]
[1740076850081,3.10746245,653.29,652.5,1.13018886]
[1740076850383,2.21903491,653.32,652.5,1.13018886]
[1740076850384,3.10746245,653.28,652.5,1.13018886]
[1740076850683,3.10746245,653.27,652.5,1.13018886]
[1740076850882,3.10746245,653.26,652.5,1.13018886]
[1740076851086,3.10746245,653.25,652.5,1.13018886]
[1740076851287,3.10746245,653.24,652.5,1.13018886]
[1740076851482,3.10746245,653.23,652.5,1.13018886]
[1740076851685,3.10746245,653.22,652.5,1.13018886]
[1740076851885,3.10746245,653.21,652.5,1.13018886]
[1740076852085,3.10746245,653.2,652.5,1.13018886]
[1740076852384,3.10746245,653.19,652.5,1.13018886]
[1740076852584,3.10746245,653.18,652.5,1.13018886]
[1740076852786,3.10746245,653.17,652.76,1.13018886]
[1740076853088,3.10746245,653.16,652.76,1.13018886]
[1740076853289,3.10746245,653.15,652.76,1.13018886]
[1740076853482,3.10746245,653.14,652.76,1.13018886]
[1740076853686,3.10746245,653.13,652.76,1.13018886]
[1740076853886,5.32649736,653.12,652.76,1.13018886]
[1740076854085,3.10746245,653.11,652.76,1.13018886]
[1740076854281,3.10746245,653.1,652.76,1.13018886]
[1740076854488,3.10746245,653.09,652.76,1.13018886]
[1740076854688,3.10746245,653.08,652.76,1.13018886]
[1740076854885,3.10746245,653.07,652.76,1.13018886]
[1740076855085,2.21903491,653.12,652.76,1.13018886]
[1740076855289,3.10727637,653.11,652.76,1.13018886]
[1740076855588,2.21903491,653.12,652.76,1.13018886]
[1740076856190,3.10783858,653.11,652.76,1.13018886]
[1740076856385,3.10783858,653.1,652.76,1.13018886]
[1740076856591,3.10783858,653.09,652.76,1.13018886]
[1740076856790,3.10783858,653.08,652.76,1.13018886]
[1740076856987,3.10783858,653.07,652.76,1.13018886]
[1740076857187,3.10783858,653.06,652.76,1.13018886]
[1740076857385,2.21903491,653.11,652.76,1.13018886]
[1740076857386,3.10783858,653.05,652.76,1.13018886]
[1740076857592,3.10783858,653.04,652.76,1.13018886]
[1740076857889,3.10783858,653.03,652.76,1.13018886]
[1740076858087,3.10783858,653.02,652.76,1.13018886]
[1740076858288,3.10783858,653.01,652.76,1.13018886]
[1740076858492,3.10783858,653.0,652.76,1.13018886]
[1740076858793,3.10783858,652.99,652.76,1.13018886]
[1740076858994,3.10783858,652.98,652.76,1.13018886]
[1740076859194,3.10783858,652.97,652.76,1.13018886]
[1740076859494,3.10783858,652.96,652.22,1.13018886]
[1740076859695,3.10783858,652.95,652.22,1.13018886]
[1740076859991,3.10783858,652.94,652.22,1.13018886]
[1740076860190,3.10783858,652.93,652.22,1.13018886]
[1740076860393,3.10783858,652.92,652.22,1.13018886]
[1740076860693,3.10783858,652.91,652.22,1.13018886]
[1740076860890,3.10783858,652.9,652.22,1.13018886]
[1740076861090,3.10783858,652.89,652.22,1.13018886]
[1740076861291,3.10783858,652.88,652.22,1.13018886]
[1740076861495,5.32687349,652.87,652.22,1.13018886]
[1740076861695,3.10783858,652.86,652.22,1.13018886]
[1740076861896,3.10783858,652.85,652.22,1.13018886]
[1740076862097,3.10783858,652.84,652.22,1.13018886]
[1740076862298,3.10783858,652.83,652.33,1.13018886]
[1740076862498,3.10783858,652.82,652.33,1.13018886]
[1740076862692,3.10783858,652.81,652.33,1.13018886]
[1740076862894,3.10783858,652.8,652.33,1.13018886]
[1740076863092,2.21903491,652.87,652.33,1.13018886]
[1740076863296,3.10376245,652.86,652.33,1.13018886]
[1740076863498,3.10376245,652.85,652.33,1.13018886]
[1740076863691,3.10376245,652.84,652.33,1.13018886]
[1740076863895,2.21903491,652.87,652.33,1.13018886]
[1740076864200,5.32189447,652.86,652.33,1.13018886]
[1740076864400,3.10285956,652.85,652.33,1.13018886]
[1740076864592,2.21903491,652.86,652.33,1.13018886]
[1740076865697,2.21903491,652.86,652.25,1.13018886]
[1740076866198,1.247,653.16,652.25,1.13018886]
[1740076866398,3.10134869,653.15,652.25,1.13018886]
[1740076866594,3.10134869,653.14,652.25,1.13018886]
[1740076866900,3.10134869,653.13,652.25,1.13018886]
[1740076867199,3.10134869,653.12,652.25,1.13018886]
[1740076867394,2.21466485,653.14,652.25,1.13018886]
[1740076867598,3.10057843,653.13,652.44,1.13018886]
[1740076867797,2.21466485,653.14,652.44,1.13018886]
[1740076867998,3.10063347,653.13,652.44,1.13018886]
[1740076868195,2.21466485,653.14,652.44,1.13018886]
[1740076868396,5.3151661,653.13,652.44,1.13018886]
[1740076868597,2.21466485,653.13,652.44,1.13018886]
[1740076870299,2.21466485,653.12,652.44,1.13018886]
[1740076870701,2.21466485,653.12,652.47,1.13018886]
[1740076871199,5.31430478,653.11,652.47,1.13018886]
[1740076871397,3.09963993,653.1,652.47,1.13018886]
[1740076871595,3.09963993,653.09,652.47,1.13018886]
[1740076871798,3.09963993,653.08,652.47,1.13018886]
[1740076871999,3.09963993,653.07,652.47,1.13018886]
[1740076872200,3.09963993,653.06,652.47,1.13018886]
[1740076872401,3.09963993,653.05,652.47,1.13018886]
[1740076872602,3.09963993,653.04,652.47,1.13018886]
[1740076872902,3.09963993,653.03,652.47,1.13018886]
[1740076873203,3.09963993,653.02,652.47,1.13018886]
[1740076873404,3.09963993,653.01,652.47,1.13018886]
[1740076873705,3.09963993,653.0,652.47,1.13018886]
[1740076874005,3.09963993,652.99,652.35,1.13018886]
[1740076874302,3.09917127,652.98,652.35,1.13018886]
[1740076874505,3.09917127,652.97,652.35,1.13018886]
[1740076874704,2.21466485,652.97,652.35,1.13018886]
[1740076874898,3.09925083,652.96,652.35,1.13018886]
[1740076875104,2.21466485,652.97,652.35,1.13018886]
[1740076875404,3.09929369,652.96,652.35,1.13018886]
[1740076875705,3.09936488,652.95,652.35,1.13018886]
[1740076875903,2.21466485,652.97,652.35,1.13018886]
[1740076876104,3.09934762,652.96,652.35,1.13018886]
[1740076876306,3.09945229,652.95,652.35,1.13018886]
[1740076876503,2.21466485,652.97,652.35,1.13018886]
[1740076876804,5.31416892,652.96,652.35,1.13018886]
[1740076877006,2.21466485,652.96,652.46,1.13018886]
[1740076877705,3.09962764,652.95,652.46,1.13018886]
[1740076877906,2.21466485,652.96,652.46,1.13018886]
[1740076878908,1.427,653.26,652.46,1.13018886]
[1740076879206,5.31345569,653.25,652.46,1.13018886]
[1740076879407,3.09977151,653.24,652.46,1.13018886]
[1740076879708,2.21368418,653.25,652.28,1.12967756]
[1740076879709,3.09977151,653.23,652.47,1.13018886]
[1740076879901,3.09977151,653.22,652.47,1.13018886]
[1740076880108,3.09977151,653.21,652.47,1.13018886]
[1740076880302,2.21368418,653.25,652.47,1.13018886]
[1740076880303,3.09977151,653.2,652.47,1.13018886]
[1740076880506,3.09977151,653.19,652.47,1.13018886]
[1740076880709,3.09977151,653.18,652.47,1.13018886]
[1740076881009,3.09977151,653.17,652.47,1.13018886]
[1740076881212,3.09977151,653.16,652.47,1.13018886]
[1740076881407,3.09977151,653.15,652.47,1.13018886]
[1740076881613,3.09977151,653.14,652.47,1.13018886]
[1740076881809,3.09977151,653.13,652.47,1.13018886]
[1740076882012,3.09977151,653.12,652.47,1.13018886]